{"text_format":"1","workbook":"xlsx","n_sheets":2,"sheets":["sansAccents","references"],"not_rendered":{"charts":0,"images":0,"macros":0,"external_links":0,"defined_names":1,"comments":0,"pivot_tables":0},"unopened":[],"bounds":{"document_bytes":16777216,"sheet_cells":100000,"rows_first":2000,"rows_last":500,"rows_between":2000,"halvings":0,"cell_chars":16384,"cell_head_chars":4096},"cells_cut":0,"cells_raw":0,"read":"whole","date_system":"1900"}

{"sheet":"sansAccents","index":0,"n_rows":13,"n_cols":19,"rows_kept":13,"cut":false,"hidden":false,"merged":[[0,16,0,18],[0,2,0,3],[0,5,0,10]]}
[null,"Bonbache.fr","Bonbache.fr/Excel",null,null,"Bonbache.fr/ExcelVBA",null,null,null,null,null,null,null,null,null,null,"Livres Excel"]
[]
[null,"échiquier",null,null,{"$f":"IFERROR(VLOOKUP(MID($B3,COLUMN(A1),1),lettres,2,FALSE),\"\")","v":"e"},{"$f":"IFERROR(VLOOKUP(MID($B3,COLUMN(B1),1),lettres,2,FALSE),\"\")","v":"c"},{"$f":"IFERROR(VLOOKUP(MID($B3,COLUMN(C1),1),lettres,2,FALSE),\"\")","v":"h"},{"$f":"IFERROR(VLOOKUP(MID($B3,COLUMN(D1),1),lettres,2,FALSE),\"\")","v":"i"},{"$f":"IFERROR(VLOOKUP(MID($B3,COLUMN(E1),1),lettres,2,FALSE),\"\")","v":"q"},{"$f":"IFERROR(VLOOKUP(MID($B3,COLUMN(F1),1),lettres,2,FALSE),\"\")","v":"u"},{"$f":"IFERROR(VLOOKUP(MID($B3,COLUMN(G1),1),lettres,2,FALSE),\"\")","v":"i"},{"$f":"IFERROR(VLOOKUP(MID($B3,COLUMN(H1),1),lettres,2,FALSE),\"\")","v":"e"},{"$f":"IFERROR(VLOOKUP(MID($B3,COLUMN(I1),1),lettres,2,FALSE),\"\")","v":"r"},{"$f":"IFERROR(VLOOKUP(MID($B3,COLUMN(J1),1),lettres,2,FALSE),\"\")","v":""},{"$f":"IFERROR(VLOOKUP(MID($B3,COLUMN(K1),1),lettres,2,FALSE),\"\")","v":""},{"$f":"IFERROR(VLOOKUP(MID($B3,COLUMN(L1),1),lettres,2,FALSE),\"\")","v":""},{"$f":"IFERROR(VLOOKUP(MID($B3,COLUMN(M1),1),lettres,2,FALSE),\"\")","v":""},{"$f":"IFERROR(VLOOKUP(MID($B3,COLUMN(N1),1),lettres,2,FALSE),\"\")","v":""},{"$f":"IFERROR(VLOOKUP(MID($B3,COLUMN(O1),1),lettres,2,FALSE),\"\")","v":""}]
[null,"télévision",null,null,"t","e","l","e","v","i","s","i","o","n","","","","",""]
[null,"apparaître",null,null,"a","p","p","a","r","a","i","t","r","e","","","","",""]
[null,"dévoré",null,null,"d","e","v","o","r","e","","","","","","","","",""]
[null,"pense bête",null,null,"p","e","n","s","e"," ","b","e","t","e","","","","",""]
[null,"pêcheur",null,null,"p","e","c","h","e","u","r","","","","","","","",""]
[null,"élèves",null,null,"e","l","e","v","e","s","","","","","","","","",""]
[null,"astéroïdes",null,null,"a","s","t","e","r","o","i","d","e","s","","","","",""]
[null,"étoilées",null,null,"e","t","o","i","l","e","e","s","","","","","","",""]
[null,"Mûrir",null,null,"m","u","r","i","r","","","","","","","","","",""]
[null,"dévoué",null,null,"d","e","v","o","u","e","","","","","","",null,"",""]

{"sheet":"references","index":1,"n_rows":42,"n_cols":7,"rows_kept":42,"cut":false,"hidden":false,"merged":[[0,2,0,3],[0,4,0,5]]}
[null,"Bonbache.fr","Bonbache.fr/Excel",null,"Bonbache.fr/ExcelVBA",null,"Livres Excel"]
[]
[null,null,null,{"$f":"CHAR(ROW(A97))","v":"a"},{"$f":"CHAR(ROW(A97))","v":"a"}]
[null,null,null,{"$f":"CHAR(ROW(A98))","v":"b"},{"$f":"CHAR(ROW(A98))","v":"b"}]
[null,null,null,"c","c"]
[null,null,null,"d","d"]
[null,null,null,"e","e"]
[null,null,null,"f","f"]
[null,null,null,"g","g"]
[null,null,null,"h","h"]
[null,null,null,"i","i"]
[null,null,null,"j","j"]
[null,null,null,"k","k"]
[null,null,null,"l","l"]
[null,null,null,"m","m"]
[null,null,null,"n","n"]
[null,null,null,"o","o"]
[null,null,null,"p","p"]
[null,null,null,"q","q"]
[null,null,null,"r","r"]
[null,null,null,"s","s"]
[null,null,null,"t","t"]
[null,null,null,"u","u"]
[null,null,null,"v","v"]
[null,null,null,"w","w"]
[null,null,null,"x","x"]
[null,null,null,"y","y"]
[null,null,null,{"$f":"CHAR(ROW(A122))","v":"z"},"z"]
[null,null,null," "," "]
[null,null,null,"é","e"]
[null,null,null,"è","e"]
[null,null,null,"ê","e"]
[null,null,null,"ê","e"]
[null,null,null,"ë","e"]
[null,null,null,"à","a"]
[null,null,null,"â","a"]
[null,null,null,"ç","c"]
[null,null,null,"ù","u"]
[null,null,null,"û","u"]
[null,null,null,"ï","i"]
[null,null,null,"î","i"]
[null,null,null,"ô","o"]